Cogmind - Beta 10.2 @@@ ROGUE MODE // 2021.07.08 @ 00:08:43 Player: xarkaik Result: Destroyed by G-34 Mercenary with Small Laser Performance ------------- Evolutions (1) 500 Regions Visited (2) 400 Robots Destroyed (26) 130 Value Destroyed (637) 637 Prototype IDs (0) 0 Alien Tech Used (0) 0 Bonus (0) 0 TOTAL SCORE: 1667 Bonus ------- None Cogmind --------- Core Integrity 0/400 Matter 283/300 Energy 28/100 System Corruption 3% Temperature Cool (15) Movement Core (100) Ox1 Location -9/Materials Parts ------- > --- POWER (1) -------- (None) > --- PROPULSION (2) --- (None) > --- UTILITY (4) ------ Small Storage Unit Signal Interpreter > --- WEAPON (2) ------- (None) > --- INVENTORY (6) ---- Light Treads Visual Processing Unit Small Laser Mining Claw Peak State ------------ > --- POWER ------------ Improved Ion Engine > --- PROPULSION ------- Carbon-fiber Leg Carbon-fiber Leg > --- UTILITY ---------- Small Storage Unit Signal Interpreter > --- WEAPON ----------- Heavy EM Pulse Gun Heavy Assault Rifle > --- INVENTORY -------- Light Treads Visual Processing Unit Particle Charger Heavy EM Pulse Gun Small Laser Mining Claw [Rating: 15] Favorites ----------- Power Ion Engine Engine Ion Engine Propulsion Light Treads Treads Light Treads Leg Carbon-fiber Leg Wheel Wheel Utility Signal Interpreter Device Sensor Array Storage Small Storage Unit Processor Signal Interpreter Protection Light Armor Plating Weapon Heavy Assault Rifle Energy Gun Heavy EM Pulse Gun Energy Cannon Beam Cannon Ballistic Gun Heavy Assault Rifle Special Melee Weapon Datajack Build | -11 -10 -9 ------- Run | Scr Mat Mat Slots Evolved 2 | . . 2 Power . | . . . Propulsion . | . . . Utility 2 | . . 2 Weapon . | . . . Parts Attached 35 | 5 8 22 Power 4 | 1 1 2 Engine 4 | 1 1 2 Core . | . . . Reactor . | . . . Propulsion 8 | 2 1 5 Treads 3 | . . 3 Leg 2 | . . 2 Wheel 3 | 2 1 . Hover . | . . . Flight . | . . . Utility 9 | . 3 6 Device 5 | . 1 4 Storage 1 | . 1 . Processor 2 | . 1 1 Hackware . | . . . Protection 1 | . . 1 Artifact . | . . . Weapon 14 | 2 3 9 Energy Gun 4 | . . 4 Energy Cannon 1 | . 1 . Ballistic Gun 8 | 2 2 4 Ballistic Cannon . | . . . Launcher . | . . . Special Weapon . | . . . Impact Weapon . | . . . Slashing Weapon . | . . . Piercing Weapon . | . . . Special Melee Weapon 1 | . . 1 Unidentified Prototypes . | . . . Parts Lost 18 | . . 18 Power 3 | . . 3 Propulsion 4 | . . 4 Utility 4 | . . 4 Weapon 7 | . . 7 Highest Loss Streak 8 | . . 8 Average Slot Usage (%) 86 | . 97 80 Engine 7 | . 14 3 Treads 11 | . . 17 Wheel 10 | . 28 1 Device 9 | . 10 8 Storage 7 | . 2 11 Processor 12 | . 13 12 Protection 2 | . . 3 Energy Gun 3 | . . 5 Energy Cannon 2 | . 4 . Ballistic Gun 16 | . 22 13 Naked Turns . | . . . Heaviest Build 18 | 6 14 18 Greatest Support 40 | 20 20 40 Greatest Overweight (x) 5 | . . 5 Average Overweight (x) . | . . . Largest Inventory Capacity 6 | 4 6 6 Average Capacity 5 | 4 4 6 Most Carried 6 | 2 5 6 Average Carried 3 | . 2 3 Final Capacity 6 | 4 6 6 Final Carried 5 | . 5 4 Class Distribution -------------------- 55% | Scavenger-Mutant 44% | Mutant Dominant Class ---------------- Mutant | -10/Materials Scavenger-Mutant | -9/Materials Resources | -11 -10 -9 ----------- Run | Scr Mat Mat Matter Collected 754 | 248 174 332 Remotely . | . . . Salvage Created 777 | . 193 584 Parts 61 | . 23 38 Haulers Intercepted . | . . . Recyclers Shooed . | . . . Parts Field Recycled . | . . . Retrieved Matter . | . . . Parts Self-Destructed . | . . . Prevented . | . . . Kills | -11 -10 -9 ------- Run | Scr Mat Mat Combat Hostiles Destroyed 20 | . 6 14 Guns 18 | . 6 12 Cannons 2 | . . 2 Classes Destroyed 6 | . 3 3 Worker 2 | . . 2 Builder 2 | . 2 . Watcher 2 | . . 2 Swarmer 6 | . 3 3 Grunt 13 | . 3 10 Sentry 1 | . . 1 Best Kill Streak 4 | . 3 4 Combat Bots Only 3 | . 3 3 Max Kills in Single Turn 2 | . 1 2 Gunslinging 1 | . . 1 Exploded . | . . . Melee . | . . . Uniques/NPCs Destroyed . | . . . Combat | -11 -10 -9 -------- Run | Scr Mat Mat Damage Taken 2163 | . 336 1827 Core 460 | . 54 406 Absorbed by Shields . | . . . Core Remaining (%) 89 | 100 78 . Volleys Fired 85 | . 24 61 Largest 2 | . 2 2 Hottest 88 | . 80 88 Shots Fired 151 | . 48 103 Gun 142 | . 47 95 Cannon 9 | . 1 8 Launcher . | . . . Special . | . . . Kinetic 117 | . 47 70 Thermal 22 | . 1 21 Explosive . | . . . Electromagnetic 12 | . . 12 Robot Hit Streak 15 | . 7 15 Robot Miss Streak 6 | . 3 6 Penetration Max . | . . . Secondary Targets 4 | . 2 2 Max Gunslinging Chain 1 | . 1 1 Shots Hit Robots 89 | . 24 65 Core Hits 39 | . 11 28 Critical Hits . | . . . Critical Kills . | . . . Critical Parts Destroyed . | . . . Melee Attacks 2 | . . 2 Impact . | . . . Slashing . | . . . Piercing . | . . . Sneak Attacks . | . . . Combat Hostiles . | . . . Follow-up Attacks . | . . . Damage Inflicted 1304 | . 278 1026 Guns 1150 | . 278 872 Cannons 138 | . . 138 Explosions . | . . . Melee . | . . . Ramming 16 | . . 16 Kinetic 936 | . 278 658 Thermal 197 | . . 197 Explosive . | . . . Electromagnetic 155 | . . 155 Impact . | . . . Slashing . | . . . Piercing . | . . . Highest Corruption 3 | . . 3 Average Corruption 1 | . . 1 Corruption Purged . | . . . Overload Shots . | . . . Overflow Damage . | . . . Projectiles . | . . . Explosions . | . . . Melee . | . . . Knockbacks . | . . . Impact . | . . . Kinetic . | . . . Secondary . | . . . Self-Inflicted Damage . | . . . Shots . | . . . Rammed 4 | . . 4 Targets Rammed 6 | . . 6 Kicked 1 | . . 1 Crushed 1 | . . 1 Highest Temperature 58 | . 18 58 Average Temperature 14 | . 8 16 Received Heat Transfer 807 | . 96 711 Siege Activations . | . . . Robots Corrupted . | . . . Combat Hostiles . | . . . Parts Fried 1 | . . 1 Impact Corruptions . | . . . Robots Melted . | . . . Combat Hostiles . | . . . Parts Melted . | . . . Heat Transferred 444 | . . 444 Parts Sabotaged . | . . . Parts Stolen . | . . . Parts Stripped . | . . . Power Chain Reactions . | . . . Missiles Intercepted . | . . . Alert | -11 -10 -9 ------- Run | Scr Mat Mat Peak Influence 268 | . 228 268 Initial 96 | . . 96 Average 149 | . 132 170 Maximum Alert Level 1 | . 1 1 Low Security (%) 67 | 100 74 60 Level 1 32 | . 25 39 Level 2 . | . . . Level 3 . | . . . Level 4 . | . . . Level 5 . | . . . High Security . | . . . Max Security . | . . . Squads Dispatched 3 | . 1 2 Investigation 1 | . . 1 Extermination . | . . . Reinforcement 2 | . 1 1 Assault . | . . . Garrison . | . . . Intercept . | . . . Construction Impeded . | . . . Haulers Reinforced . | . . . Stealth | -11 -10 -9 --------- Run | Scr Mat Mat Distress Signals 3 | . 1 2 Communications Jammed . | . . . Distress Signals . | . . . Times Spotted 48 | . 13 35 Peak Tracking Total 9 | . 5 9 Tactical Retreats 1 | . 1 . Traps | -11 -10 -9 ------- Run | Scr Mat Mat Traps Triggered 1 | . . 1 Indirectly . | . . . Trap Hack Attempts . | . . . Triggered . | . . . Disarmed . | . . . Reprogrammed . | . . . Reused . | . . . Traps Extracted . | . . . Installed . | . . . Triggered . | . . . Machines | -11 -10 -9 ---------- Run | Scr Mat Mat Machines Disabled 2 | . . 2 Max in Single Turn 1 | . . 1 Machines Sabotaged . | . . . Garrisons Compromised . | . . . Overloaded Fab Kills . | . . . Fab Network Shutdowns . | . . . Hacking | -11 -10 -9 --------- Run | Scr Mat Mat Machines Accessed 5 | . 3 2 Terminals 3 | . 2 1 Fabricators . | . . . Repair Stations 1 | . 1 . Recycling Units 1 | . . 1 Scanalyzers . | . . . Garrison Access . | . . . Total Hacks 17 | . 13 4 Successful 8 | . 7 1 Failed 9 | . 6 3 Catastrophic 2 | . 1 1 Database Lockouts . | . . . Manual 4 | . 4 . Terminals 12 | . 10 2 Fabricators . | . . . Repair Stations 3 | . 3 . Recycling Units 2 | . . 2 Scanalyzers . | . . . Garrison Access . | . . . Terminal Hacks 6 | . 5 1 Record 3 | . 3 . Alert Level 1 | . . 1 Assault Status 1 | . 1 . Registered Components 1 | . 1 . Fabricator Hacks . | . . . Repair Station Hacks 2 | . 2 . Scan Component 2 | . 2 . Recycling Unit Hacks . | . . . Scanalyzer . | . . . Garrison Access Hacks . | . . . Unauthorized Hacks . | . . . Terminals . | . . . Fabricators . | . . . Repair Stations . | . . . Recycling Units . | . . . Scanalyzers . | . . . Garrison Access . | . . . Data Cores Recovered . | . . . Used . | . . . Hacking Detections 4 | . 2 2 Full Trace Events 1 | . 1 . Feedback Events . | . . . Feedback Blocked . | . . . Robot Schematics Acquired . | . . . Robots Built . | . . . Matter . | . . . Time . | . . . Total Robot Build Rating . | . . . Part Schematics Acquired . | . . . Parts Built . | . . . Matter . | . . . Time . | . . . Total Part Build Rating . | . . . Parts Repaired . | . . . Time . | . . . Parts Recycled . | . . . Recycled Matter . | . . . Retrieved Matter . | . . . Retrieved Components . | . . . Parts Scanalyzed . | . . . Part Schematics Acquired . | . . . Parts Damaged . | . . . Bothacking | -11 -10 -9 ------------ Run | Scr Mat Mat Used RIF Installer . | . . . Robots Hacked 1 | . . 1 Non-combat . | . . . Combat 1 | . . 1 Robot Hacks Applied 1 | . . 1 parse_system 1 | . . 1 Relay Couplers Released . | . . . Robots Rewired . | . . . Allies Hacked . | . . . Hacks Repelled . | . . . Allies | -11 -10 -9 -------- Run | Scr Mat Mat Total Allies . | . . . Largest Group . | . . . Highest-Rated Group . | . . . Highest-Rated Ally . | . . . Total Orders . | . . . Ally Attacks . | . . . Total Damage . | . . . Kills . | . . . Allies Corrupted . | . . . Allies Melted . | . . . Intel | -11 -10 -9 ------- Run | Scr Mat Mat Robot Analysis Total . | . . . Derelict Logs Recovered . | . . . Drone Launches . | . . . Drone Recoveries . | . . . Exploration | -11 -10 -9 ------------- Run | Scr Mat Mat Turns Passed 1169 | 58 397 714 Spaces Moved 750 | 63 361 326 Core 30 | 3 . 27 Treads 247 | . . 247 Legs 8 | . . 8 Wheels 465 | 60 361 44 Hover . | . . . Flight . | . . . Fastest Speed 50 | 50 80 80 Average Speed 109 | 78 80 147 Slowest Speed 300 | 80 80 300 Overloaded Moves . | . . . Propulsion Burnouts . | . . . Robots Hopped . | . . . Cave-ins Triggered . | . . . Exploration Rate (%) 21 | 3 36 25 Regions Visited 2 Branch Regions . Pre-discovered Areas . | . . . Known Exits Taken 1 | . 1 . Unknown Exits Taken 1 | 1 . . Scrap Searched . | . . . Spaces Dug . | . . . Terrain Destroyed . | . . . Melee . | . . . Projectile . | . . . AOE . | . . . Terrain Rammed . | . . . Walls Destroyed . | . . . Machines Disabled . | . . . Actions | -11 -10 -9 --------- Run | Scr Mat Mat Total 944 | 69 423 452 Wait 30 | . 18 12 Move 748 | 62 360 326 Hop . | . . . Pick Up 18 | 2 6 10 Fast Attach 16 | 3 5 8 Attach 14 | 2 . 12 Detach 6 | . . 6 Swap 5 | . 3 2 Drop 14 | . 7 7 Fire 85 | . 24 61 Melee 2 | . . 2 Ram . | . . . Kick 3 | . . 3 Crush 3 | . . 3 Escape Stasis . | . . . Rewire . | . . . Trap . | . . . Miscellaneous . | . . . Route ------- -11/Scrapyard -10/Materials -9/Materials (discovered 1 exit: *Min) History --------- Turn | Location | Event 39 | -11/Scrapyard | Discovered new exit (range 15) 59 | -11/Scrapyard | Entered Materials 332 | -10/Materials | Build established: Mutant 424 | -10/Materials | Discovered new exit (range 3) 455 | -10/Materials | Identified exit to Materials 456 | -10/Materials | Entered another Materials area 456 | -9/Materials | Evolved 2 slots: Utility x2 547 | -9/Materials | Lost 5 parts (1p2n1u1w) 843 | -9/Materials | Build established: Scavenger-Mutant 996 | -9/Materials | Core integrity fell below 50% 1017 | -9/Materials | Lost 3 parts (1p1u1w) 1067 | -9/Materials | Discovered new exit (range 13) 1087 | -9/Materials | Identified exit to Mines 1149 | -9/Materials | Core integrity fell below 20% 1170 | -9/Materials | Destroyed by G-34 Mercenary with Small Laser Last Messages --------------- Acquired Carbon-fiber Leg. Hvy. EM Pulse Gun destroyed. Imp. Ion Engine destroyed. Hvy. Assault Rifle destroyed. Kicked G-34 Mercenary out of the way. Slammed into G-34 Mercenary. Carbon-fiber Leg permanently disabled. Destabilizing: Short circuit. Slammed into G-34 Mercenary. Carbon-fiber Leg permanently disabled. Destabilizing: Short circuit. Broken Carbon-fiber Leg destroyed. G-34 Mercenary destroyed. Broken Carbon-fiber Leg destroyed. Hvy. EM Pulse Gun destroyed. Particle Charger destroyed. System corrupted by crushing effect (+1). U-05 Engineer lays Concrete. K-01 Serf cleans the Machine. U-05 Engineer lays Concrete. Map ----- +----------------------------------------------------+ | ?????????????????????????????????????????????????? | | ?????????????????????????????????????????????????? | | ?????????????????????????????????????????????????? | | ?????????????????????????????????????????????????? | | ?????????????????????????????????????????????????? | | ?????????????????????????????????????????????????? | | ?????????????????????????????????????????????????? | | ????????????????????????#######??????????????????? | | ???????????????????????? ???????????????????? | | ????##########?????????? ????????????????????? | | ????# #?????????? ?????????????????????? | | ????#""" % ""#######???##k####???????????????????? | | ????#""" T"# ##### uu #???????????????????? | | ????#""" ""#[ #???????????????????? | | ????# %%+% [ #???????????????????? | | ????#""" =[#!! #???????????????????? | | ????#"" # ##### #???????????????????? | | ????#""" !## ##???## ##???????????????????? | | ###?# ##= #?????# #????????????????????? | | # ############# #?????# u #????????????????????? | | # =######## #?????# #????????????????????? | | # """[+ [! =* %% #??####= ##???????????????????? | | # ""=*#########+#####"""k #???????????????????? | | # ""= # #" ######??????????????? | | # + " """"" #"! # ????????#??????? | | # # """"""""" #"" @> # ??????? #??????? | | + #??""" """ #"| b # ???????? #??????? | | # ""#??? #" g # ???????? #??????? | | # ""#?? #""" Yg # ???????? #??????? | | # T"#?###+#######+#### Y%## ???????? ???????? | | # ""#???????##### =%!##/#########/###?????? | | # ""#???? == #?????? | | # #?? !% + ????? | | ########??? * #?????? | | ##????????? #######+##### ## # #?????? | | #?????????????????????????# ## =#???#?????? | | ##?????????????????????????# ##!!=!==#?????????? | | #??????????????????????????# ##!!!! #?????????? | | #??????????????????????????# #########?????????? | | #??????????????????????????# #?????????????????? | | #??????????????????????????# #?????????????????? | | #??????????????????????????# #?????????????????? | | ?#?????????????????????????# #?????????????????? | | #??????????????????????????# #?????????????????? | | ?#?????????????????????????# #?????????????????? | | ?#?????????????????????????# #?????????????????? | | ??????????????????????????? ?????????????????? | | ##????????????????????????? ??????????????????? | | ???????????????????????????? ??????????????????? | | ?????????????????????????????????????????????????? | +----------------------------------------------------+ Best States ------------- Heat Dissipation 28 Energy Generation 12 Energy Capacity 265 Matter Stores 300 Matter Capacity 300 Sight Range 16 Robot Scan Range 10 Terrain Scan Range 14 Terrain Scan Density 85 ECM Strength 1 Armor Coverage 150 Evasion (%) 44 Recoil Reduction 2 Particle Charging 15 Item Schematics ----------------- None Robot Schematics ------------------ None Fabricated ------------ Nothing Alien Tech Used ----------------- None Achievements -------------- None Challenges ------------ None Game ------ Seed PlasmaMachineDoomcannon Manual? 0 Play Time 00:25:23 Cumulative 3.6 hours Start 2021.07.07 @ 23:33:39 End 2021.07.08 @ 00:08:43 Sessions 1 Manual Loads 0 Difficulty Rogue Special Mode None Game No. 4 Rogue 4 Adventurer 0 Explorer 0 Win Type - Total 0 Types 0/0/0/0/0/0/0/0/0 Lore% 1 Gallery% 8 Achievement% 6 Wizard Run 0 Options --------- ASCII 0 Keyboard 1 Movement Arrows Keybinds 0 Fullscreen 1 Font 18/SmallcapsGlow Map View 76x50 Tactical HUD 0 Map Filters NONE Filters NONE Steam 1 RUN: b0f9b6a6-308d-4a97-bedc-83ffeff9dd9b